fUSD/lending_fUSD_20240117
["ID","MTS","AMOUNT","RATE_DAILY","PERIOD"]
[311978527,1705527588152,-170.32070872,0.0004247,30]
[311978528,1705527588175,-170.32070872,0.0004247,30]
[311978529,1705527588196,-170.32070872,0.0004247,30]
[311978530,1705527588218,-170.32070872,0.0004247,30]
[311978531,1705527588240,-170.32070872,0.0004247,30]
[311978532,1705527588262,-170.32070872,0.0004247,30]
[311978533,1705527588284,-170.32070872,0.0004247,30]
[311978534,1705527588308,-170.32070872,0.0004247,30]
[311978535,1705527588331,-170.32070872,0.0004247,30]
[311978536,1705527588510,-170.32070872,0.0004247,30]
[311978537,1705527588533,-170.32,0.0004247,30]
[311978538,1705527588557,-2500.0,0.0004248,42]
[311978539,1705527588581,-150.0,0.0004248,30]
[311978540,1705527588602,-200.0,0.000425,30]
[311978541,1705527588625,-218.933587,0.000425,32]
[311978542,1705527588649,-1000.0,0.000425,120]
[311978543,1705527588671,-857.93599662,0.000425,120]
[311978544,1705527588695,-204.0,0.0004252,33]
[311978545,1705527588718,-508.85960474,0.00042534,30]
[311978546,1705527588744,-348.01047431,0.00042546,120]
[311978547,1705527588768,-150.0,0.000426,30]
[311978548,1705527588791,-1052.95,0.00042602,30]
[311978549,1705527588814,-150.0,0.0004266,30]
[311978550,1705527588837,-2454.96392121,0.00042687,30]
[311978551,1705527588860,-3734.0,0.000427,92]
[311978552,1705527588883,-816.2452302,0.00042725,90]
[311978553,1705527588909,-1052.95,0.00042739,30]
[311978554,1705527588931,-510.0,0.00042739,120]
[311978555,1705527588954,-500.0,0.00042739,60]
[311978556,1705527588976,-150.0,0.0004275,30]
[311978557,1705527588998,-150.0,0.0004275,30]
[311978558,1705527589022,-150.0,0.0004275,30]
[311978559,1705527589047,-150.0,0.0004275,30]
[311978560,1705527589073,-150.0,0.0004275,30]
[311978561,1705527589099,-150.0,0.0004275,30]
[311978562,1705527589124,-150.0,0.0004275,30]
[311978563,1705527589148,-150.0,0.0004275,30]
[311978564,1705527589171,-400.0,0.00042795,120]
[311978565,1705527589196,-150.0,0.0004284,30]
[311978566,1705527589222,-1052.95,0.00042876,30]
[311978567,1705527589246,-4006.0,0.000429,40]
[311978568,1705527589268,-153.0,0.000429,30]
[311978569,1705527589292,-150.0,0.000429,30]
[311978570,1705527589316,-350.0,0.00042959,120]
[311978571,1705527589341,-500.0,0.00042987,35]
[311978572,1705527589365,-984833.82841924,0.00043,30]
[311978573,1705527589394,-471.78933872,0.00043,120]
[311978574,1705527589422,-300.0,0.00043,44]
[311978575,1705527589447,-2000.000481,0.00043,60]
[311978576,1705527589473,-1000.0,0.00043,60]
[311978577,1705527589496,-834.0,0.00043,30]
[311978578,1705527589522,-679.05196194,0.00043,120]
[311978579,1705527589552,-18378.63132847,0.00043,30]
[311978580,1705527589579,-2150.0,0.00043,90]
[311978581,1705527589604,-2654.76316387,0.00043,120]
[311978582,1705527589630,-428.0,0.00043,120]
[311978583,1705527589654,-59775.96639475,0.00043,30]
[311978584,1705527589679,-1500.0,0.00043,30]
[311978585,1705527589705,-1000.0,0.00043,120]
[311978586,1705527589729,-9122.61152498,0.00043,30]
[311978587,1705527589752,-123081.30889056,0.00043,120]
[311978588,1705527589777,-2499.99999903,0.00043,45]
[311978589,1705527589802,-677.38881801,0.00043,60]
[311978590,1705527589828,-73234.74213429,0.00043,30]
[311978591,1705527589853,-635.55350709,0.00043,30]
[311978592,1705527589880,-1052.95,0.00043013,30]
[311978593,1705527589906,-510.0,0.00043013,120]
[311978594,1705527589930,-150.0,0.0004302,30]
[311978595,1705527589954,-1000.0,0.00043042,30]
[311978596,1705527589978,-1052.95,0.0004315,30]
[311978597,1705527590003,-172.59432,0.000432,30]
[311978598,1705527590030,-150.0,0.000432,30]
[311978599,1705527590055,-150.0,0.000432,30]
[311978600,1705527590083,-150.0,0.000432,30]
[311978601,1705527590112,-150.0,0.000432,30]
[311978602,1705527590137,-1052.95,0.00043287,30]
[311978603,1705527590161,-510.0,0.00043287,120]
[311978604,1705527590186,-500.0,0.00043287,60]
[311978605,1705527590211,-202.76183993,0.000433,30]
[311978606,1705527590236,-201.77637242,0.000433,120]
[311978607,1705527590262,-150.0,0.0004338,30]
[311978608,1705527590287,-204.66691907,0.00043381,30]
[311978609,1705527590311,-2499.999999,0.000434,43]
[311978610,1705527590336,-1052.95,0.00043424,30]
[311978611,1705527590374,-2500.0,0.0004348,43]
[311978612,1705527590402,-1478.99113533,0.000435,120]
[311978613,1705527590427,-150.0,0.000435,30]
[311978614,1705527590451,-150.0,0.000435,30]
[311978615,1705527590476,-150.0,0.000435,30]
[311978616,1705527590500,-150.0,0.0004356,30]
[311978617,1705527590524,-1052.95,0.00043561,30]
[311978618,1705527590547,-510.0,0.00043561,120]
[311978619,1705527590571,-1052.95,0.00043698,30]
[311978620,1705527590594,-400.0,0.00043726,120]
[311978621,1705527590619,-150.0,0.0004374,30]
[311978622,1705527590643,-577.25307532,0.00043798,60]
[311978623,1705527590667,-1271.39285637,0.00043798,60]
[311978624,1705527590690,-10149.71141761,0.000438,30]
[311978625,1705527590714,-150.0,0.000438,30]
[311978626,1705527590737,-2154.49608934,0.00043806,120]
[311978627,1705527590762,-1052.95,0.00043835,30]
[311978628,1705527590785,-3000.0,0.00043835,120]
[311978629,1705527590808,-510.0,0.00043835,120]
[311978630,1705527590830,-290.0,0.00043835,60]
[311978631,1705527590853,-280.91360253,0.00043835,60]
[311978632,1705527590882,-413.20816532,0.00043835,60]
[311978633,1705527590911,-290.75760488,0.00043859,60]
[311978634,1705527590935,-290.75760488,0.00043862,60]
[311978635,1705527590959,-200.0,0.0004387,60]
[311978636,1705527590982,-63666.43594926,0.0004387,60]
[311978637,1705527597277,1000.0,0.0001627,2]
[311978638,1705527598454,-161.04431928,0.00039,40]
[311978639,1705527598518,-178031.30661674,0.0004387,60]
[311978640,1705527598542,-150.0,0.00043875,30]
[311978641,1705527598568,-150.0,0.00043875,30]
[311978642,1705527598595,-1395.82198281,0.00043888,60]
[311978643,1705527598619,-290.75760488,0.00043888,60]
[311978644,1705527598644,-1395.82198281,0.0004389,60]
[311978645,1705527598668,-200.0,0.00043891,60]
[311978646,1705527598692,-1395.82198281,0.00043892,60]
[311978647,1705527598715,-241697.742566,0.00043894,60]
[311978648,1705527598739,-241697.742566,0.00043895,60]
[311978649,1705527598763,-453.10368155,0.000439,60]
[311978650,1705527598787,-13500.0,0.000439,120]
[311978651,1705527598809,-930.3196712,0.000439,30]
[311978652,1705527598833,-150.0,0.0004392,30]
[311978653,1705527599116,-350.0,0.00043945,120]
[311978654,1705527599141,-195.88558845,0.0004395,120]
[311978655,1705527599166,-1052.95,0.00043972,30]
[311978656,1705527599190,-7000.0,0.00043985,60]
[311978657,1705527599215,-500.0,0.00043987,37]
[311978658,1705527599239,-2307.89963879,0.00043995,30]
[311978659,1705527599263,-2091.86697524,0.00043999,30]
[311978660,1705527599285,-2598.0,0.00044,30]
[311978661,1705527599309,-1427.59989814,0.00044,120]
[311978662,1705527599332,-5000.0,0.00044,30]
[311978663,1705527599356,-285.0,0.00044,30]
[311978664,1705527599379,-1666.0,0.00044,30]
[311978665,1705527599402,-1074.0,0.00044,120]
[311978666,1705527599424,-423.52926774,0.00044,30]
[311978667,1705527599447,-521.70746126,0.00044,120]
[311978668,1705527599474,-1757.43364242,0.00044,30]
[311978669,1705527599500,-247.05328812,0.00044,60]
[311978670,1705527599523,-455.76797677,0.00044,30]
[311978671,1705527599546,-989.57924393,0.00044,31]
[311978672,1705527599570,-229.36371648,0.00044,30]
[311978673,1705527599595,-300.0,0.00044,45]
[311978674,1705527599620,-440000.0,0.00044,30]
[311978675,1705527599645,-853.29154165,0.00044,90]
[311978676,1705527599671,-200.0,0.00044,120]
[311978677,1705527599698,-32184.53807435,0.00044,120]
[311978678,1705527599722,-1000.0,0.00044,120]
[311978679,1705527599748,-5999.99999902,0.00044,30]
[311978680,1705527599775,-10000.0,0.00044,45]
[311978681,1705527599799,-153.0,0.00044,30]
[311978682,1705527599822,-200.0,0.00044,30]
[311978683,1705527599846,-158.0,0.00044,90]
[311978684,1705527599869,-1000.0,0.00044056,30]
[311978685,1705527599893,-150.0,0.000441,30]
[311978686,1705527599916,-150.0,0.000441,30]
[311978687,1705527599939,-150.0,0.000441,30]
[311978688,1705527599962,-150.0,0.000441,30]
[311978689,1705527599986,-1052.95,0.00044109,30]
[311978690,1705527600010,-510.0,0.00044109,120]
[311978691,1705527600034,-1052.9950085,0.00044246,30]
[311978692,1705527600057,-150.0,0.0004425,30]
[311978693,1705527600079,-150.0,0.0004425,30]
[311978694,1705527600103,-150.0,0.0004428,30]
[311978695,1705527600125,-1266.34393663,0.00044324,31]
[311978696,1705527600148,-3000.0,0.00044383,120]
[311978697,1705527600172,-510.0,0.00044383,120]
[311978698,1705527600196,-756.30426402,0.000444,30]
[311978699,1705527600219,-1000.0,0.000444,30]
[311978700,1705527600243,-21052.38317092,0.000444,30]
[311978701,1705527600269,-150.0,0.000444,30]
[311978702,1705527600298,-150.0,0.0004446,30]
[311978703,1705527600322,-1291.28873629,0.000445,60]
[311978704,1705527600347,-168.07621856,0.00044575,30]
[311978705,1705527600371,-531.01276331,0.00044575,30]
[311978706,1705527600394,-327.4584247,0.00044575,30]
[311978707,1705527600419,-500.0,0.00044575,30]
[311978708,1705527600445,-500.0,0.00044575,30]
[311978709,1705527600470,-429.65460297,0.00044575,30]
[311978710,1705527600494,-500.0,0.00044575,30]
[311978711,1705527600517,-200.0,0.00044575,30]
[311978712,1705527600541,-500.0,0.00044575,30]
[311978713,1705527600565,-500.0,0.00044575,30]
[311978714,1705527600588,-500.0,0.00044575,30]
[311978715,1705527600615,-500.0,0.00044575,30]
[311978716,1705527600640,-500.0,0.00044575,30]
[311978717,1705527600664,-647.27610162,0.00044575,30]
[311978718,1705527600689,-500.0,0.00044575,30]
[311978719,1705527600714,-500.0,0.00044575,30]
[311978720,1705527600737,-522.92695799,0.00044575,30]
[311978721,1705527600760,-156.8780874,0.00044575,30]
[311978722,1705527600784,-152.71970744,0.00044575,30]
[311978723,1705527600808,-500.0,0.00044575,30]
[311978724,1705527600831,-500.0,0.00044575,30]
[311978725,1705527600854,-500.0,0.00044575,30]
[311978726,1705527600880,-500.0,0.00044575,30]
[311978727,1705527600905,-412.79680238,0.00044575,30]
[311978728,1705527600929,-685.43757143,0.00044575,30]
[311978729,1705527600954,-685.43757143,0.00044575,30]
[311978730,1705527600978,-685.43757143,0.00044575,30]
[311978731,1705527601002,-685.43757143,0.00044575,30]
[311978732,1705527601025,-685.43757143,0.00044575,30]
[311978733,1705527601050,-685.43757143,0.00044575,30]
[311978734,1705527601074,-685.43757143,0.00044575,30]
[311978735,1705527601099,-685.43757143,0.00044575,30]
[311978736,1705527601126,-685.43757143,0.00044575,30]
[311978737,1705527601151,-685.43757143,0.00044575,30]
[311978738,1705527601175,-685.43757143,0.00044575,30]
[311978739,1705527601200,-685.43757143,0.00044575,30]
[311978740,1705527601226,-685.43757143,0.00044575,30]
[311978741,1705527601252,-685.43757143,0.00044575,30]
[311978742,1705527601278,-1096.70011427,0.00044575,30]
[311978743,1705527601304,-150.0,0.0004464,30]
[311978744,1705527601330,-510.0,0.00044657,120]
[311978745,1705527601365,-400.0,0.00044658,120]
[311978746,1705527601405,-150.0,0.000447,30]
[311978747,1705527601432,-477.21006359,0.0004475,30]
[311978748,1705527601457,-122233.41211991,0.0004477,31]
[311978749,1705527601484,-2657.1217219,0.000448,30]
[311978750,1705527601509,-281.2794,0.000448,30]
[311978751,1705527601534,-615.91097021,0.000448,120]
[311978752,1705527601559,-1201.77713154,0.000448,30]
[311978753,1705527601583,-150.0,0.0004482,30]
[311978754,1705527601610,-460205.98709178,0.000449,30]
[311978755,1705527601645,-1153061.46131761,0.000449,120]
[311978756,1705527603029,-2306252.76507465,0.000449,120]
[311978757,1705527603053,-883.62767019,0.000449,120]
[311978758,1705527603077,-90000.0,0.000449,30]
[311978759,1705527603100,-2312.11398255,0.00044931,120]
[311978760,1705527603126,-510.0,0.00044931,120]
[311978761,1705527603152,-350.0,0.00044932,120]
[311978762,1705527603175,-2830.0,0.00044948,45]
[311978763,1705527603198,-195.88558845,0.0004495,120]
[311978764,1705527603222,-500.0,0.00044987,39]
[311978765,1705527603246,-500.0,0.0004499,60]
[311978766,1705527603271,-349.03404724,0.00044999,30]
[311978767,1705527603294,-1000.0,0.00044999,120]
[311978768,1705527603319,-594316.57363692,0.00045,30]
[311978769,1705527606556,-500.0,0.00041369,30]
[311978770,1705527606595,-150.0,0.00044987,30]
[311978771,1705527606621,-2051379.68662852,0.00045,30]
[311978772,1705527606647,-322.76064981,0.00045,30]
[311978773,1705527606670,-944.86261279,0.00045,30]
[311978774,1705527606695,-500.24639422,0.00045,120]
[311978775,1705527606719,-1006.16308313,0.00045,120]
[311978776,1705527606741,-160.4391505,0.00045,120]
[311978777,1705527606764,-215.91790443,0.00045,120]
[311978778,1705527606788,-300.0,0.00045,46]
[311978779,1705527606810,-1000.0,0.00045,45]
[311978780,1705527607052,-1000.0,0.00045,45]
[311978781,1705527607076,-1000.0,0.00045,45]
[311978782,1705527607099,-1000.0,0.00045,45]
[311978783,1705527607122,-1000.0,0.00045,45]
[311978784,1705527607145,-1500.0,0.00045,60]
[311978785,1705527607168,-1400.0,0.00045,60]
[311978786,1705527607190,-150.999997,0.00045,120]
[311978787,1705527607214,-3222.19296429,0.00045,30]
[311978788,1705527607237,-273.04995062,0.00045,120]
[311978789,1705527607260,-329.19352002,0.00045,30]
[311978790,1705527607282,-1500.0,0.00045,90]
[311978791,1705527607307,-187.82175558,0.00045,30]
[311978792,1705527607330,-858.28078485,0.00045,120]
[311978793,1705527607353,-10000.0,0.00045,30]
[311978794,1705527607375,-213.81714361,0.00045,120]
[311978795,1705527607402,-1200.0,0.00045,120]
[311978796,1705527607424,-200.0,0.00045,60]
[311978797,1705527607446,-500.0,0.00045,120]
[311978798,1705527607471,-917984.56746063,0.00045,120]
[311978800,1705527617278,1000.0,0.0001627,2]
[311978808,1705527677802,1000.0,0.00016107,2]
[311978809,1705527693864,1000.0,0.00016107,2]
[311978812,1705527711806,1000.0,0.00016107,2]
[311978814,1705527725804,1000.0,0.00016107,2]
[311978816,1705527749800,1000.0,0.00015946,2]
[311978818,1705527763816,1000.0,0.00015946,2]
[311978820,1705527785820,1000.0,0.00015946,2]
[311978824,1705527807819,1000.0,0.00015787,2]
[311978826,1705527827835,1000.0,0.00015787,2]
[311978828,1705527843828,1000.0,0.00015629,2]
[311978830,1705527859828,1000.0,0.00015629,2]
[311978832,1705527881837,1000.0,0.00015629,2]
[311978834,1705527901841,1000.0,0.00015473,2]
[311978836,1705527924161,1000.0,0.00015473,2]
[311978837,1705527941851,1000.0,0.00015473,2]
[311978839,1705527961875,1000.0,0.00015318,2]
[311978841,1705527979880,1000.0,0.00015318,2]
[311978843,1705527999892,1000.0,0.00015318,2]
[311978847,1705528019882,1000.0,0.00015165,2]
[311978849,1705528037880,1000.0,0.00015165,2]
[311978851,1705528055897,1000.0,0.00015165,2]
[311978852,1705528061389,561.08,0.00017895,2]
[311978854,1705528077885,1000.0,0.00015013,2]
[311978859,1705528097896,1000.0,0.00015013,2]
[311978893,1705528115895,1000.0,0.00015013,2]
[311979283,1705528137894,1000.0,0.00014863,2]
[311979305,1705528155896,1000.0,0.00014863,2]
[311979308,1705528181910,1000.0,0.00014714,2]
[311979310,1705528199898,1000.0,0.00014714,2]
[311979314,1705528217898,1000.0,0.00014714,2]
[311979328,1705528231931,-364.02742498,0.00019544,2]
[311979329,1705528231940,-204.0,0.00019545,2]
[311979330,1705528231949,-1150.62352053,0.00019552,2]
[311979331,1705528231989,-512.69287336,0.00019552,2]
[311979342,1705528237633,-1211.00965135,0.00019552,2]
[311979343,1705528237647,-4277.4,0.00019552,2]
[311979344,1705528237746,-25031.12351327,0.00019552,2]
[311979345,1705528237756,-556.68758297,0.00019553,2]
[311979346,1705528237767,-1000.0,0.0001968,2]
[311979347,1705528237777,-1397.93,0.00019751,2]
[311979348,1705528237786,-500.0,0.00019832,2]
[311979349,1705528237796,-155.18,0.00019963,2]
[311979350,1705528237808,-561.08,0.00020159,2]
[311979351,1705528237818,-999.99,0.00020219,2]
[311979352,1705528237828,-23880.0,0.00020254,2]
[311979353,1705528237837,-480.1,0.00020333,2]
[311979354,1705528237847,-165.5,0.00020406,2]
[311979355,1705528237858,-155.18,0.00020588,2]
[311979356,1705528237867,-1397.93,0.00020729,2]
[311979357,1705528237877,-159.36,0.00020734,2]
[311979358,1705528237887,-159.7,0.00020835,2]
[311979359,1705528237898,-762.2425456,0.00020981,3]
[311979360,1705528237908,-279.3351,0.00020981,2]
[311979361,1705528237917,-38578.4385,0.00020981,2]
[311979362,1705528237929,-163.94799858,0.00021079,2]
[311979363,1705528237938,-521.24458168,0.00021079,2]
[311979364,1705528237947,-499.99,0.00021079,2]
[311979365,1705528237955,-435.21804576,0.0002108,2]
[311979366,1705528237965,-220740.46509174,0.00021081,2]
[311979367,1705528237974,-159.36,0.00021148,2]
[311979369,1705528237983,-155.18,0.00021214,2]
[311979371,1705528237991,-352.26,0.0002131,2]
[311979373,1705528238001,-165.5,0.00021469,2]
[311979375,1705528238009,-150.0,0.0002147,2]
[311979377,1705528238019,-159.36,0.00021563,2]
[311979379,1705528238028,-1397.93,0.00021708,2]
[311979381,1705528238037,-2607.53291798,0.00021799,3]
[311979383,1705528238046,-1495.13833716,0.00021799,2]
[311979385,1705528238055,-3164.89365311,0.00021815,2]
[311979387,1705528238064,-155.18,0.0002184,2]
[311979389,1705528238073,-190.0931973,0.00021907,2]
[311979391,1705528238082,-4831.67812026,0.00021915,2]
[311979393,1705528238091,-626.71926077,0.00021915,2]
[311979395,1705528238100,-707.11749365,0.00021916,2]
[311979397,1705528238109,-500.0,0.00021917,2]
[311979399,1705528238118,-500.0,0.00021917,2]
[311979401,1705528238127,-605.64098396,0.00021917,2]
[311979403,1705528238136,-500.0,0.00021917,2]
[311979405,1705528238145,-2000.0,0.00021917,2]
[311979407,1705528238154,-200.0,0.00021917,2]
[311979409,1705528238163,-500.0,0.00021917,2]
[311979410,1705528238172,-500.0,0.00021917,2]
[311979412,1705528238181,-532.12136548,0.00021917,2]
[311979414,1705528238190,-504.12236207,0.00021917,2]
[311979416,1705528238199,-500.0,0.00021917,2]
[311979418,1705528238209,-500.0,0.00021917,2]
[311979420,1705528238217,-500.0,0.00021917,2]
[311979422,1705528238226,-500.0,0.00021917,2]
[311979424,1705528238235,-500.0,0.00021917,2]
[311979426,1705528238244,-500.0,0.00021917,2]
[311979428,1705528238254,-500.0,0.00021917,2]
[311979430,1705528238263,-500.0,0.00021917,2]
[311979432,1705528238271,-500.0,0.00021917,2]
[311979434,1705528238280,-500.0,0.00021917,2]
[311979436,1705528238289,-500.0,0.00021917,2]
[311979438,1705528238299,-500.0,0.00021917,2]
[311979440,1705528238308,-527.70792416,0.00021917,2]
[311979442,1705528238317,-500.0,0.00021917,2]
[311979444,1705528238326,-500.0,0.00021917,2]
[311979446,1705528238335,-500.0,0.00021917,2]
[311979448,1705528238345,-500.0,0.00021917,2]
[311979450,1705528238354,-500.0,0.00021917,2]
[311979452,1705528238363,-500.0,0.00021917,2]
[311979454,1705528238372,-500.0,0.00021917,2]
[311979456,1705528238381,-500.0,0.00021917,2]
[311979458,1705528238389,-500.0,0.00021917,2]
[311979460,1705528238398,-500.0,0.00021917,2]
[311979462,1705528238407,-500.0,0.00021917,2]
[311979464,1705528238417,-500.0,0.00021917,2]
[311979466,1705528238428,-500.0,0.00021917,2]
[311979468,1705528238436,-500.0,0.00021917,2]
[311979470,1705528238445,-500.0,0.00021917,2]
[311979472,1705528238454,-500.30342421,0.00021917,2]
[311979474,1705528238464,-500.0,0.00021917,2]
[311979476,1705528238472,-500.0,0.00021917,2]
[311979478,1705528238482,-500.0,0.00021917,2]
[311979480,1705528238491,-524.64202986,0.00021917,2]
[311979482,1705528238501,-500.0,0.00021917,2]
[311979484,1705528238509,-500.0,0.00021917,2]
[311979486,1705528238518,-500.0,0.00021917,2]
[311979488,1705528238528,-500.0,0.00021917,2]
[311979490,1705528238537,-500.0,0.00021917,2]
[311979492,1705528238546,-500.0,0.00021917,2]
[311979494,1705528238555,-500.0,0.00021917,2]
[311979496,1705528238565,-500.0,0.00021917,2]
[311979498,1705528238577,-500.0,0.00021917,2]
[311979500,1705528238586,-500.0,0.00021917,2]
[311979502,1705528238595,-500.0,0.00021917,2]
[311979504,1705528238604,-500.0,0.00021917,2]
[311979506,1705528238614,-500.0,0.00021917,2]
[311979508,1705528238624,-612.90356625,0.00021917,2]
[311979510,1705528238634,-500.0,0.00021917,2]
[311979512,1705528238643,-500.0,0.00021917,2]
[311979514,1705528238652,-500.0,0.00021917,2]
[311979516,1705528238661,-500.0,0.00021917,2]
[311979518,1705528238671,-500.0,0.00021917,2]
[311979520,1705528238685,-500.0,0.00021917,2]
[311979522,1705528238694,-500.0,0.00021917,2]
[311979524,1705528238703,-500.0,0.00021917,2]
[311979526,1705528238712,-500.0,0.00021917,2]
[311979528,1705528238721,-500.0,0.00021917,2]
[311979530,1705528238730,-500.0,0.00021917,2]
[311979532,1705528238741,-500.0,0.00021917,2]
[311979534,1705528238750,-509.13924982,0.00021917,2]
[311979536,1705528238759,-500.0,0.00021917,2]
[311979538,1705528238768,-580.2112389,0.00021917,2]
[311979540,1705528238777,-500.0,0.00021917,2]
[311979542,1705528238786,-500.0,0.00021917,2]
[311979544,1705528238795,-500.0,0.00021917,2]
[311979546,1705528238804,-500.0,0.00021917,2]
[311979548,1705528238813,-500.0,0.00021917,2]
[311979550,1705528238822,-500.0,0.00021917,2]
[311979552,1705528238831,-500.0,0.00021917,2]
[311979554,1705528238840,-500.0,0.00021917,2]
[311979556,1705528238849,-500.0,0.00021917,2]
[311979558,1705528238858,-500.0,0.00021917,2]
[311979560,1705528238868,-481.73970255,0.00021917,2]
[311979562,1705528238877,-500.0,0.00021917,2]
[311979564,1705528238887,-500.0,0.00021917,2]
[311979566,1705528238896,-500.0,0.00021917,2]
[311979568,1705528238905,-500.0,0.00021917,2]
[311979570,1705528238914,-500.0,0.00021917,2]
[311979572,1705528238923,-500.0,0.00021917,2]
[311979574,1705528238935,-500.0,0.00021917,2]
[311979576,1705528238943,-500.0,0.00021917,2]
[311979578,1705528238952,-500.0,0.00021917,2]
[311979580,1705528238961,-500.0,0.00021917,2]
[311979582,1705528238971,-500.0,0.00021917,2]
[311979584,1705528238980,-500.0,0.00021917,2]
[311979586,1705528238990,-500.0,0.00021917,2]
[311979588,1705528238999,-195.14,0.00021917,2]
[311979590,1705528239008,-500.0,0.00021917,2]
[311979592,1705528239018,-504.49309989,0.00021917,2]
[311979594,1705528239026,-613.74,0.00021917,2]
[311979596,1705528239035,-500.0,0.00021917,2]
[311979598,1705528239044,-500.0,0.00021917,2]
[311979600,1705528239054,-500.0,0.00021917,2]
[311979602,1705528239062,-500.0,0.00021917,2]
[311979604,1705528239071,-584.37,0.00021917,2]
[311979606,1705528239080,-500.0,0.00021917,2]
[311979608,1705528239089,-624.38927293,0.00021917,2]
[311979610,1705528239098,-616.10325445,0.00021917,2]
[311979612,1705528239107,-500.0,0.00021917,2]
[311979614,1705528239116,-500.0,0.00021917,2]
[311979616,1705528239125,-500.0,0.00021917,2]
[311979618,1705528239135,-500.0,0.00021917,2]
[311979620,1705528239144,-568.72,0.00021917,2]
[311979622,1705528239153,-500.0,0.00021917,2]
[311979624,1705528239161,-180.0948246,0.00021917,10]
[311979625,1705528239170,-500.0,0.00021917,2]
[311979626,1705528239180,-500.0,0.00021917,2]
[311979627,1705528239189,-500.0,0.00021917,2]
[311979628,1705528239198,-500.0,0.00021917,2]
[311979629,1705528239207,-500.0,0.00021917,2]
[311979630,1705528239216,-547.66,0.00021917,2]
[311979631,1705528239225,-500.0,0.00021917,2]
[311979633,1705528239234,-500.0,0.00021917,2]
[311979634,1705528239243,-508.47497256,0.00021917,2]
[311979671,1705528239471,-500.0,0.00021917,2]
[311979674,1705528239481,-500.0,0.00021917,2]
[311979676,1705528239490,-500.0,0.00021917,2]
[311979679,1705528239500,-500.0,0.00021917,2]
[311979681,1705528239509,-500.0,0.00021917,2]
[311979683,1705528239518,-500.0,0.00021917,2]
[311979685,1705528239527,-500.0,0.00021917,2]
[311979687,1705528239536,-500.0,0.00021917,2]
[311979689,1705528239545,-500.0,0.00021917,2]
[311979691,1705528239554,-500.0,0.00021917,2]
[311979693,1705528239564,-500.0,0.00021917,2]
[311979695,1705528239575,-508.20089869,0.00021917,2]
[311979697,1705528239585,-574.4233731,0.00021917,2]
[311979699,1705528239594,-500.0,0.00021917,2]
[311979701,1705528239603,-500.0,0.00021917,2]
[311979703,1705528239612,-277.32,0.00021917,2]
[311979705,1705528239623,-500.0,0.00021917,2]
[311979706,1705528239632,-500.0,0.00021917,2]
[311979708,1705528239641,-500.0,0.00021917,2]
[311979711,1705528239651,-500.0,0.00021917,2]
[311979712,1705528239660,-500.0,0.00021917,2]
[311979714,1705528239669,-500.0,0.00021917,2]
[311979717,1705528239681,-569.36,0.00021917,2]
[311979719,1705528239691,-500.0,0.00021917,2]
[311979721,1705528239700,-496.32,0.00021917,2]
[311979723,1705528239710,-500.0,0.00021917,2]
[311979725,1705528239719,-500.0,0.00021917,2]
[311979726,1705528239730,-500.0,0.00021917,2]
[311979728,1705528239740,-500.0,0.00021917,2]